Cogmind - Beta 12 @@@ ROGUE MODE // 2023.03.27 @ 20:27:00 Player: Mr Goldstein Result: Destroyed by Y-54 Guardian with Gatling Laser Performance ------------- Evolutions (3) 1500 Regions Visited (8) 1600 Robots Destroyed (126) 630 Value Destroyed (3505) 3505 Prototype IDs (6) 120 Alien Tech Used (0) 0 Bonus (495) 495 TOTAL SCORE: 7850 Bonus ------- High Alert Combat Kills 481 Entered Garrisons 200 Friendly Fire -186 Cogmind --------- Core Integrity 0/700 Matter 70/300 Energy 100/100 System Corruption 17% Temperature Cool (14) Movement Core (50) Location -7/Garrison Parts ------- > --- POWER (1) -------- (None) > --- PROPULSION (3) --- (None) > --- UTILITY (7) ------ Visual Processing Unit Hacking Suite > --- WEAPON (2) ------- (None) > --- INVENTORY (5) ---- Heavy Ion Cannon Peak State ------------ > --- POWER ------------ Improved Ion Engine > --- PROPULSION ------- Light Treads Light Treads Improved Treads > --- UTILITY ---------- Power Amplifier Heat Sink Improved Heat Sink Large Storage Unit Visual Processing Unit Improved Sensor Array Improved Signal Interpreter > --- WEAPON ----------- Enhanced Autogun Gauss Rifle > --- INVENTORY -------- Light Nuclear Core Light Angular Momentum Engine Light Treads Improved VTOL Module Cooled VTOL Module Hacking Suite Hacking Suite Heavy Laser Heavy Laser Heavy Ion Cannon Minigun Minigun Enhanced Autogun Grenade Launcher Improved Grenade Launcher [Rating: 37] Favorites ----------- Power Ion Engine Engine Ion Engine Propulsion Light Treads Treads Light Treads Hover Unit Gravmag System Flight Unit VTOL Module Utility Large Storage Unit Device Improved Heat Sink Storage Large Storage Unit Processor Signal Interpreter Hackware Hacking Suite Protection Hardened Medium Armor Plating Weapon Enhanced Autogun Energy Gun Particle Gun Energy Cannon Heavy Ion Cannon Ballistic Gun Enhanced Autogun Launcher Grenade Launcher Special Weapon Mining Laser Build | -11 -10 -10 -9 -8 -7 -7 -7 -7 ------- Run | Jun Mat Min Mat Mat Fac Was Fac Gar Slots Evolved 6 | . . . 2 2 2 . . . Power . | . . . . . . . . . Propulsion 1 | . . . . 1 . . . . Utility 5 | . . . 2 1 2 . . . Weapon . | . . . . . . . . . Parts Attached 77 | 6 12 . 13 29 4 2 5 6 Power 8 | 1 1 . 2 3 . . . 1 Engine 8 | 1 1 . 2 3 . . . 1 Core . | . . . . . . . . . Reactor . | . . . . . . . . . Propulsion 27 | 2 2 . 4 14 1 . 1 3 Treads 21 | 2 2 . 4 12 1 . . . Leg . | . . . . . . . . . Wheel . | . . . . . . . . . Hover 2 | . . . . . . . 1 1 Flight 4 | . . . . 2 . . . 2 Utility 20 | 1 2 . 5 5 3 2 2 . Device 9 | . 1 . 2 2 3 . 1 . Storage 2 | 1 1 . . . . . . . Processor 4 | . . . 1 3 . . . . Hackware 3 | . . . . . . 2 1 . Protection 2 | . . . 2 . . . . . Artifact . | . . . . . . . . . Weapon 22 | 2 7 . 2 7 . . 2 2 Energy Gun 5 | . 4 . . 1 . . . . Energy Cannon 1 | . . . . . . . . 1 Ballistic Gun 12 | 2 1 . 2 5 . . 1 1 Ballistic Cannon . | . . . . . . . . . Launcher 2 | . . . . 1 . . 1 . Special Weapon 2 | . 2 . . . . . . . Impact Weapon . | . . . . . . . . . Slashing Weapon . | . . . . . . . . . Piercing Weapon . | . . . . . . . . . Special Melee Weapon . | . . . . . . . . . Unidentified Prototypes 3 | . . . 1 1 1 . . . Parts Lost 22 | . 2 . 1 11 1 . 4 3 Power 5 | . 1 . . 3 . . . 1 Propulsion 5 | . . . . 4 1 . . . Utility 8 | . . . 1 3 . . 3 1 Weapon 4 | . 1 . . 1 . . 1 1 Highest Loss Streak 4 | . 2 . 1 4 1 . 2 2 To Critical Strikes . | . . . . . . . . . Average Slot Usage (%) 93 | . 94 100 99 95 99 76 41 33 Engine 9 | . 11 14 11 8 7 4 . 3 Treads 23 | . 28 28 22 25 23 13 . . Device 14 | . 11 14 13 12 29 23 9 . Storage 10 | . 14 14 11 9 7 4 . . Processor 10 | . . . 11 18 15 15 15 11 Protection 2 | . . . 8 2 . . . . Energy Gun 7 | . 21 28 4 . . . . . Ballistic Gun 12 | . 4 . 17 17 15 8 . . Naked Turns . | . . . . . . . . . Heaviest Build 41 | 12 30 30 41 41 38 38 5 17 Greatest Support 63 | 40 40 40 40 63 63 63 9 9 Greatest Overweight (x) 2 | . . . 1 1 . . 1 2 Average Overweight (x) . | . . . . . . . . . Largest Inventory Capacity 15 | 8 15 15 15 15 15 15 5 5 Average Capacity 13 | 6 11 15 15 15 15 10 5 5 Most Carried 15 | 4 11 11 15 15 15 15 5 4 Average Carried 11 | 1 7 11 14 13 14 10 4 1 Final Capacity 15 | 8 15 15 15 15 15 5 5 5 Final Carried 15 | 2 11 11 14 15 15 5 4 1 Class Distribution -------------------- 51% | Mutant 30% | Scavenger-Mutant 13% | Scavenger-Skirmisher 3% | Hacker-Mutant Dominant Class ---------------- Mutant | -10/Materials Mutant | -10/Mines Mutant | -9/Materials Scavenger-Mutant | -8/Materials Scavenger-Skirmisher | -7/Factory Scavenger-Skirmisher | -7/Waste Hacker-Mutant | -7/Factory Hacker-Mutant | -7/Garrison Resources | -11 -10 -10 -9 -8 -7 -7 -7 -7 ----------- Run | Jun Mat Min Mat Mat Fac Was Fac Gar Matter Collected 3024 | 260 257 30 883 1433 90 . 22 49 Remotely . | . . . . . . . . . Salvage Created 4842 | . 499 . 1852 2130 256 . 33 72 Parts 315 | . 28 . 135 129 16 . 2 5 Haulers Intercepted 11 | . 1 . 5 4 1 . . . Recyclers Shooed 2 | . 1 . . 1 . . . . Parts Field Recycled . | . . . . . . . . . Retrieved Matter . | . . . . . . . . . Parts Self-Destructed . | . . . . . . . . . Prevented . | . . . . . . . . . Kills | -11 -10 -10 -9 -8 -7 -7 -7 -7 ------- Run | Jun Mat Min Mat Mat Fac Was Fac Gar Combat Hostiles Destroyed 81 | . 9 . 30 32 4 . 3 3 Guns 72 | . 9 . 30 28 4 . 1 . Cannons 3 | . . . . . . . . 3 AOE 6 | . . . . 4 . . 2 . Classes Destroyed 15 | . 4 . 7 3 1 . . . Worker 5 | . . . 2 3 . . . . Builder 4 | . . . 2 2 . . . . Tunneler 2 | . . . 1 1 . . . . Hauler 11 | . 1 . 5 4 1 . . . Recycler 8 | . . . 3 4 1 . . . Operator 4 | . 2 . 2 . . . . . Watcher 11 | . 2 . 4 5 . . . . Swarmer 18 | . . . 5 4 3 . 3 3 Grunt 40 | . 9 . 15 16 . . . . Brawler 2 | . . . . 2 . . . . Duelist 3 | . . . 2 1 . . . . Protector 1 | . . . . 1 . . . . Sentry 14 | . . . 8 6 . . . . Hunter 2 | . . . . 2 . . . . Programmer 1 | . . . . . 1 . . . Best Kill Streak 13 | . 7 . 6 13 4 . 3 3 Combat Bots Only 8 | . 7 . 4 8 3 . 3 3 Max Kills in Single Turn 4 | . 2 . 2 4 1 . 1 1 Gunslinging 1 | . 1 . 1 1 . . . . Exploded 2 | . . . . 2 . . 1 . Melee . | . . . . . . . . . Uniques/NPCs Destroyed . | . . . . . . . . . Combat | -11 -10 -10 -9 -8 -7 -7 -7 -7 -------- Run | Jun Mat Min Mat Mat Fac Was Fac Gar Damage Taken 4145 | . 582 . 598 1783 159 . 645 378 Core 1089 | . 117 . 93 171 . . 470 238 Absorbed by Shields 372 | . . . 104 247 . . . 21 Core Remaining (%) 74 | 100 . 53 76 68 . . . . Volleys Fired 352 | . 61 . 106 151 22 . 8 4 Largest 2 | . 2 . 2 2 2 . 1 2 Hottest 165 | . 165 . 130 55 53 . 30 90 Shots Fired 686 | . 115 2 212 301 44 . 7 5 Gun 669 | . 107 2 212 299 44 . 4 1 Cannon 4 | . . . . . . . . 4 Launcher 5 | . . . . 2 . . 3 . Special 8 | . 8 . . . . . . . Kinetic 596 | . 58 . 190 299 44 . 4 1 Thermal 85 | . 57 2 22 . . . . 4 Explosive 5 | . . . . 2 . . 3 . Electromagnetic . | . . . . . . . . . Robot Hit Streak 16 | . 12 . 14 16 8 . 3 2 Robot Miss Streak 8 | . 3 . 7 8 3 . 1 1 Penetration Max . | . . . . . . . . . Secondary Targets 10 | . 2 . 4 4 . . . . Max Gunslinging Chain 1 | . 1 . 1 1 . . . . Shots Hit Robots 429 | . 74 . 128 196 25 . 3 3 Core Hits 204 | . 29 . 58 98 9 . 6 4 Critical Kills . | . . . . . . . . . Critical Parts Destroyed . | . . . . . . . . . Critical Strikes 3 | . 3 . . . . . . . Burn 3 | . 3 . . . . . . . Melee Attacks . | . . . . . . . . . Impact . | . . . . . . . . . Slashing . | . . . . . . . . . Piercing . | . . . . . . . . . Sneak Attacks . | . . . . . . . . . Combat Hostiles . | . . . . . . . . . Follow-up Attacks . | . . . . . . . . . Damage Inflicted 7749 | . 1000 10 2215 3728 377 . 318 101 Guns 6966 | . 1000 . 2201 3318 377 . 54 16 Cannons 82 | . . . . . . . . 82 Explosions 626 | . . . . 400 . . 226 . Melee . | . . . . . . . . . Ramming 75 | . . 10 14 10 . . 38 3 Kinetic 6290 | . 540 . 1985 3318 377 . 54 16 Thermal 758 | . 460 . 216 . . . . 82 Explosive 626 | . . . . 400 . . 226 . Electromagnetic . | . . . . . . . . . Impact . | . . . . . . . . . Slashing . | . . . . . . . . . Piercing . | . . . . . . . . . Highest Corruption 17 | . 1 1 . . . 14 17 17 Average Corruption 4 | . 1 1 . . . 8 15 17 Corruption Purged . | . . . . . . . . . Corruption Blocked . | . . . . . . . . . Effects 45 | . 7 7 . . . 6 17 8 Message Errors 7 | . 3 1 . . . . 1 2 Matter Fused 10 | . 2 1 . . . . 5 2 Heat Flow Errors 6 | . 1 1 . . . 2 1 1 Energy Discharges 5 | . . 1 . . . 1 2 1 Parts Rejected 1 | . . . . . . . 1 . Parts Fused 1 | . . . . . . . 1 . Data Loss (minor) 6 | . 1 . . . . 3 1 1 Data Loss (major) 2 | . . . . . . . 2 . Misfires 2 | . . 2 . . . . . . Alerts 1 | . . 1 . . . . . . Misdirections 2 | . . . . . . . 2 . Weapon Failures 2 | . . . . . . . 1 1 Overload Shots . | . . . . . . . . . Overflow Damage 3 | . . . . . . . 3 . Projectiles . | . . . . . . . . . Explosions 3 | . . . . . . . 3 . Melee . | . . . . . . . . . Knockbacks . | . . . . . . . . . Impact . | . . . . . . . . . Kinetic . | . . . . . . . . . Secondary . | . . . . . . . . . Self-Inflicted Damage 119 | . . . . . . . 118 1 Shots 3 | . . . . . . . 3 . Rammed 18 | . . 2 2 5 . . 8 1 Targets Rammed 20 | . . 2 4 5 . . 8 1 Kicked . | . . . . . . . . . Crushed 2 | . . . 2 . . . . . Highest Temperature 252 | . 132 252 58 37 . 108 133 235 Average Temperature 26 | . 33 138 23 9 . 60 61 79 Received Heat Transfer 1589 | . 360 . 181 692 . . 243 113 Siege Activations . | . . . . . . . . . Robots Corrupted . | . . . . . . . . . Combat Hostiles . | . . . . . . . . . Parts Fried . | . . . . . . . . . Impact Corruptions . | . . . . . . . . . Robots Melted . | . . . . . . . . . Combat Hostiles . | . . . . . . . . . Parts Melted 2 | . 1 . . 1 . . . . Heat Transferred 1924 | . 1332 . 481 . . . . 111 Parts Sabotaged . | . . . . . . . . . Parts Stolen . | . . . . . . . . . Parts Stripped . | . . . . . . . . . Power Chain Reactions . | . . . . . . . . . Missiles Intercepted . | . . . . . . . . . Alert | -11 -10 -10 -9 -8 -7 -7 -7 -7 ------- Run | Jun Mat Min Mat Mat Fac Was Fac Gar Peak Influence 845 | . 238 18 622 845 456 59 246 272 Initial 361 | . . 13 . 244 361 59 41 172 Average 291 | . 69 11 289 652 322 59 127 234 Maximum Alert Level 3 | . 1 . 2 3 2 . 1 1 Low Security (%) 43 | 100 87 100 32 . 10 100 81 34 Level 1 28 | . 12 . 40 13 74 . 18 65 Level 2 16 | . . . 27 32 14 . . . Level 3 11 | . . . . 53 . . . . Level 4 . | . . . . . . . . . Level 5 . | . . . . . . . . . High Security . | . . . . . . . . . Max Security . | . . . . . . . . . Squads Dispatched 11 | . 2 . 3 3 1 . 2 . Investigation 6 | . 2 . 1 2 . . 1 . Extermination 1 | . . . . . 1 . . . Reinforcement 3 | . . . 2 . . . 1 . Assault 1 | . . . . 1 . . . . Garrison . | . . . . . . . . . Intercept . | . . . . . . . . . Searches Triggered . | . . . . . . . . . Construction Impeded . | . . . . . . . . . Haulers Reinforced . | . . . . . . . . . Active Scanning Responses . | . . . . . . . . . Cargo Convoy Interrupts . | . . . . . . . . . Stealth | -11 -10 -10 -9 -8 -7 -7 -7 -7 --------- Run | Jun Mat Min Mat Mat Fac Was Fac Gar Distress Signals 20 | . 2 . 8 9 1 . . . Communications Jammed . | . . . . . . . . . Distress Signals . | . . . . . . . . . Times Spotted 176 | . 23 . 50 62 7 6 17 11 Peak Tracking Total 12 | . 9 . 7 12 4 6 6 5 Tactical Retreats 13 | . 1 . 4 3 . 1 3 1 Traps | -11 -10 -10 -9 -8 -7 -7 -7 -7 ------- Run | Jun Mat Min Mat Mat Fac Was Fac Gar Traps Triggered 4 | . 1 . . 1 1 . . 1 Indirectly . | . . . . . . . . . Trap Hack Attempts . | . . . . . . . . . Triggered . | . . . . . . . . . Disarmed . | . . . . . . . . . Reprogrammed . | . . . . . . . . . Reused . | . . . . . . . . . Traps Extracted . | . . . . . . . . . Installed . | . . . . . . . . . Triggered . | . . . . . . . . . Machines | -11 -10 -10 -9 -8 -7 -7 -7 -7 ---------- Run | Jun Mat Min Mat Mat Fac Was Fac Gar Machines Disabled 14 | . 2 . 8 4 . . . . Max in Single Turn 1 | . 1 . 1 1 . . . . Machines Repaired . | . . . . . . . . . Machines Sabotaged . | . . . . . . . . . Overloaded Fab Kills . | . . . . . . . . . Hacking | -11 -10 -10 -9 -8 -7 -7 -7 -7 --------- Run | Jun Mat Min Mat Mat Fac Was Fac Gar Machines Accessed 29 | . 8 1 8 6 3 . 2 1 Terminals 23 | . 7 1 6 5 3 . . 1 Fabricators 1 | . . . . . . . 1 . Repair Stations . | . . . . . . . . . Recycling Units 3 | . 1 . 2 . . . . . Scanalyzers 1 | . . . . 1 . . . . Garrison Access 1 | . . . . . . . 1 . Total Hacks 73 | . 22 1 20 21 5 . 3 1 Successful 29 | . 10 1 3 10 1 . 3 1 Failed 42 | . 11 . 17 10 4 . . . Catastrophic 6 | . 2 . 1 1 2 . . . Database Lockouts 2 | . 1 . . 1 . . . . Manual 64 | . 23 . 18 19 4 . . . Terminals 60 | . 18 1 18 17 5 . . 1 Fabricators 2 | . . . . . . . 2 . Repair Stations . | . . . . . . . . . Recycling Units 6 | . 4 . 2 . . . . . Scanalyzers 4 | . . . . 4 . . . . Garrison Access 1 | . . . . . . . 1 . Terminal Hacks 13 | . 6 1 . 4 1 . . 1 Record 1 | . . . . . 1 . . . Robot Analysis 2 | . 1 . . 1 . . . . Prototype ID Bank 3 | . 3 . . . . . . . Emergency Access Points 1 | . . . . . . . . 1 Terminal Index 2 | . 1 . . 1 . . . . Recall Investigation 1 | . 1 . . . . . . . Hauler Manifests 1 | . . . . 1 . . . . Registered Components 1 | . . . . 1 . . . . Zone Layout 1 | . . 1 . . . . . . Fabricator Hacks 2 | . . . . . . . 2 . Load Schematic 1 | . . . . . . . 1 . Build 1 | . . . . . . . 1 . Repair Station Hacks . | . . . . . . . . . Recycling Unit Hacks . | . . . . . . . . . Scanalyzer 3 | . . . . 3 . . . . Insert Component 1 | . . . . 1 . . . . Analyze 2 | . . . . 2 . . . . Garrison Access Hacks 1 | . . . . . . . 1 . Unlock Access 1 | . . . . . . . 1 . Unauthorized Hacks 10 | . 4 . 3 3 . . . . Terminals 6 | . 3 . 1 2 . . . . Assimilate 2 | . 2 . . . . . . . Operators 4 | . 1 . 1 2 . . . . Fabricators . | . . . . . . . . . Repair Stations . | . . . . . . . . . Recycling Units 3 | . 1 . 2 . . . . . Mask 3 | . 1 . 2 . . . . . Scanalyzers 1 | . . . . 1 . . . . Researchers 1 | . . . . 1 . . . . Garrison Access . | . . . . . . . . . Data Cores Recovered . | . . . . . . . . . Used . | . . . . . . . . . Hacking Detections 23 | . 6 1 7 4 3 . 1 1 Full Trace Events 7 | . 2 . 3 1 . . 1 . Feedback Events 1 | . 1 . . . . . . . Corruption 1 | . 1 . . . . . . . Feedback Blocked . | . . . . . . . . . Robot Schematics Acquired . | . . . . . . . . . Robots Built . | . . . . . . . . . Authchips . | . . . . . . . . . Time . | . . . . . . . . . Total Robot Build Rating . | . . . . . . . . . Part Schematics Acquired 1 | . . . . 1 . . . . Parts Built 1 | . . . . . . . 1 . Authchips . | . . . . . . . . . Time 73 | . . . . . . . 73 . Total Part Build Rating 3 | . . . . . . . 3 . Parts Repaired . | . . . . . . . . . Time . | . . . . . . . . . Parts Recycled . | . . . . . . . . . Recycled Matter . | . . . . . . . . . Retrieved Matter . | . . . . . . . . . Retrieved Components . | . . . . . . . . . Parts Scanalyzed 1 | . . . . 1 . . . . Part Schematics Acquired 1 | . . . . 1 . . . . Parts Damaged . | . . . . . . . . . Bothacking | -11 -10 -10 -9 -8 -7 -7 -7 -7 ------------ Run | Jun Mat Min Mat Mat Fac Was Fac Gar Used RIF Installer . | . . . . . . . . . Robots Hacked . | . . . . . . . . . Non-combat . | . . . . . . . . . Combat . | . . . . . . . . . Robot Hacks Applied . | . . . . . . . . . Relay Couplers Released . | . . . . . . . . . Fabnet Peak Effective % . | . . . . . . . . . Robots Rewired . | . . . . . . . . . Allies Hacked . | . . . . . . . . . Hacks Repelled . | . . . . . . . . . Allies | -11 -10 -10 -9 -8 -7 -7 -7 -7 -------- Run | Jun Mat Min Mat Mat Fac Was Fac Gar Total Allies 1 | . 1 . . . . . . . Largest Group 1 | . 1 . . . . . . . Highest-Rated Group 10 | . 10 . . . . . . . Highest-Rated Ally 10 | . 10 . . . . . . . Total Orders 1 | . 1 . . . . . . . STAY 1 | . 1 . . . . . . . Ally Attacks . | . . . . . . . . . Total Damage . | . . . . . . . . . Kills . | . . . . . . . . . Allies Corrupted . | . . . . . . . . . Allies Melted . | . . . . . . . . . Intel | -11 -10 -10 -9 -8 -7 -7 -7 -7 ------- Run | Jun Mat Min Mat Mat Fac Was Fac Gar Robot Analysis Total 2 | . 1 . . 1 . . . . Derelict Logs Recovered 2 | . . 2 . . . . . . Drone Launches . | . . . . . . . . . Drone Recoveries . | . . . . . . . . . Exploration | -11 -10 -10 -9 -8 -7 -7 -7 -7 ------------- Run | Jun Mat Min Mat Mat Fac Was Fac Gar Turns Passed 7246 | 77 1503 544 2095 1584 897 142 285 119 Spaces Moved 3713 | 49 642 339 848 641 507 152 418 117 Core 622 | 13 . . . . . 115 382 112 Treads 3050 | 36 642 339 848 641 507 37 . . Legs . | . . . . . . . . . Wheels . | . . . . . . . . . Hover 41 | . . . . . . . 36 5 Flight . | . . . . . . . . . Fastest Speed 50 | 50 160 160 160 160 160 50 50 50 Average Speed 151 | 130 160 160 201 161 160 76 50 76 Slowest Speed 240 | 160 160 160 240 240 160 160 100 150 Overloaded Moves . | . . . . . . . . . Propulsion Burnouts . | . . . . . . . . . Robots Hopped . | . . . . . . . . . Cave-ins Triggered . | . . . . . . . . . Exploration Rate (%) 41 | 4 63 50 66 49 10 92 12 30 Regions Visited 8 Branch Regions 1 Pre-discovered Areas . | . . . . . . . . . Known Exits Taken 3 | . . . 1 1 . . 1 . Unknown Exits Taken 3 | 1 1 1 . . . . . . Scrap Searched 2 | . . 2 . . . . . . Spaces Dug 14 | . 8 . . . . . 6 . Terrain Destroyed 26 | . 8 . . 4 . . 14 . Melee . | . . . . . . . . . Projectile 8 | . 8 . . . . . . . AOE 18 | . . . . 4 . . 14 . Terrain Rammed . | . . . . . . . . . Walls Destroyed . | . . . . . . . . . Machines Disabled . | . . . . . . . . . Actions | -11 -10 -10 -9 -8 -7 -7 -7 -7 --------- Run | Jun Mat Min Mat Mat Fac Was Fac Gar Total 4837 | 62 986 340 1096 988 559 181 482 143 Wait 562 | . 252 . 98 134 19 19 40 . Move 3706 | 48 641 338 847 640 507 151 417 117 Hop . | . . . . . . . . . Pick Up 67 | 8 16 . 14 21 5 . 1 2 Fast Attach 4 | . . . 2 . . . 2 . Attach 39 | 6 3 . 2 13 4 2 3 6 Detach 3 | . . . . . . . 2 1 Swap 35 | . 9 . 9 16 1 . . . Drop 41 | . 4 . 14 8 1 9 1 4 Fire 352 | . 61 . 106 151 22 . 8 4 Melee . | . . . . . . . . . Ram 9 | . . . . . . . 8 1 Kick . | . . . . . . . . . Crush 11 | . . 2 4 5 . . . . Escape Stasis 8 | . . . . . . . . 8 Rewire . | . . . . . . . . . Trap . | . . . . . . . . . Miscellaneous . | . . . . . . . . . Route ------- -11/Junkyard -10/Materials (discovered 2 exits: *Min x2) -10/Mines -9/Materials (discovered 5 exits: *Mat x2 / *Min / *Sto x2) -8/Materials -7/Factory -7/Waste -7/Factory -7/Garrison History --------- Turn | Location | Event 10 | -11/Junkyard | Discovered new exit (range 13) 78 | -11/Junkyard | Entered Materials 291 | -10/Materials | Destroyed 7 combat bots 300 | -10/Materials | Build established: Mutant 736 | -10/Materials | Discovered new exit (range 7) 825 | -10/Materials | Discovered new exit (range 16) 1569 | -10/Materials | Central database locked down 1581 | -10/Materials | Entered Mines 1591 | -10/Mines | Discovered new exit (range 15) 1756 | -10/Mines | Learned 2 Materials zone layouts 1870 | -10/Mines | Assembled infested the area 1875 | -10/Mines | Assisted by a Guerilla fighting off Assembled 2125 | -10/Mines | Entered Materials 2125 | -9/Materials | Evolved 2 slots: Utility x2 2126 | -9/Materials | Identified exit to Mines 2126 | -9/Materials | Discovered new exit (range 11) 2127 | -9/Materials | Identified exit to Storage 2504 | -9/Materials | Build established: Scavenger-Mutant 2763 | -9/Materials | Discovered new exit (range 9) 3268 | -9/Materials | Build established: Mutant 3583 | -9/Materials | Discovered new exit (range 4) 4217 | -9/Materials | Identified exit to Materials 4220 | -9/Materials | Entered another Materials area 4220 | -8/Materials | Evolved 2 slots: Propulsion x1, Utility x1 4575 | -8/Materials | Discovered new exit (range 10) 4586 | -8/Materials | Destroyed 8 combat bots 4620 | -8/Materials | First assault squad dispatched 4733 | -8/Materials | Lost 4 parts (1p1n2u) 5030 | -8/Materials | Build established: Scavenger-Mutant 5485 | -8/Materials | Identified exit to Factory 5522 | -8/Materials | Central database locked down 5804 | -8/Materials | Entered Factory 5804 | -7/Factory | Evolved 2 slots: Utility x2 6118 | -7/Factory | Build established: Scavenger-Skirmisher 6701 | -7/Factory | Sucked down chute 6701 | -7/Factory | Entered Waste 6713 | -7/Waste | Spotted C-40 Crusher 6716 | -7/Waste | EMP discharged 6732 | -7/Waste | Spotted C-40 Crusher 6760 | -7/Waste | Spotted C-40 Crusher 6786 | -7/Waste | Spotted C-40 Crusher 6786 | -7/Waste | Spotted C-40 Crusher 6807 | -7/Waste | Discovered new exit (range 17) 6815 | -7/Waste | Identified exit to Factory 6816 | -7/Waste | EMP discharged 6816 | -7/Waste | System corruption reached 10% 6843 | -7/Waste | Entered Factory 6945 | -7/Factory | Fabricated Hacking Suite? 7110 | -7/Factory | Core integrity fell below 50% 7127 | -7/Factory | Identified exit to Garrison 7128 | -7/Factory | Entered Garrison 7218 | -7/Garrison | Triggered checkpoint 7229 | -7/Garrison | Core integrity fell below 20% 7246 | -7/Garrison | Triggered checkpoint 7247 | -7/Garrison | Destroyed by Y-54 Guardian with Gatling Laser Last Messages --------------- 07218_ System corrupted: Matter fused (-6). 07227_ C-30 ARC bursts open, deploying its payload. 07227_ G-50 Soldier unfolds itself. 07227_ G-47 Trooper unfolds itself. 07230_ Slammed into G-47 Trooper. 07230_ Lgt. Angular Momentum Engine destroyed. 07238_ GBNO&STX=HFPH%GZPLPW 07239_ Triggered Stasis Trap. 07239_ A bubble of rippling energy engulfs the area. 07239_ Field strength at 94. 07239_ Field strength at 88. 07240_ Field strength at 82. 07241_ Field strength at 76. 07242_ Field strength at 70. 07243_ Field strength at 64. 07244_ Field strength at 58. 07245_ Field strength at 52. 07246_ Field strength at 46. 07246_ Beams of light sweep through the air. An alarm sounds. 07247_ Hacking Suite destroyed. Map ----- +----------------------------------------------------+ | ?????????????????????????????????????????????????? | | ?????????????????????????????????????????????????? | | ?????????????????????????????????????????????????? | | ????????????????????????????????????????######"""" | | ????????????????????+?????????????????### | | ??????????????????????????????+???????? | | ??????????????????????????????+????????? | | ????????????????????????????????+???????# ## | | ????????????????????????????????????????# ## | | ??????????????????????????????????????+?" | | ????????????????????????????????????????" | | ??????????????????????????????????????+?" | | ????????????????????????????????????????" | | ????????????????????????????????????????# ## | | ??????????????????????????????##+######## ## | | ??????????????????????????????#" | | ???????????????????+??????????#%" | | ??????????????????????????????#" #####+## | | ??????????????????????????????# #??????## ## | | ??????????????????????????????# #???????# #???? | | ??????????????????????????????# +???????# #??+?? | | ??????????????????????????????# #???????+ #????? | | ????????????????????????#####?# #???????# #????? | | ????????????????????+???+YY #?# #???????# #????? | | ??????????????????#+##### ### #####+### #????? | | ??????????????????# @ gg +????? | | ??????????????????# ^ #????? | | ??????????????????####### ### ############????? | | ????????????????????????#gg #?# #???????????????? | | ????????????????????????"""""?# #???????????????? | | ????????????????????????####### #???????????????? | | ??????????????????????????????# #???????????????? | | ??????????????????????????????# #???????????????? | | ??????????????????????????????# #???????????????? | | ??????????????????????????????# #???????????????? | | ??????????????????????????????# #???????????????? | | ??????????????????????????????# #???????????????? | | ??????????????????????????????# #???????????????? | | ?????????????????????????????? #???????????????? | | ?????????????????????????????? #???????????????? | | ??????????????????????????????+##????????????????? | | ?????????????????????????????????????????????????? | | ?????????????????????????????????????????????????? | | ?????????????????????????????????????????????????? | | ?????????????????????????????????????????????????? | | ?????????????????????????????????????????????????? | | ?????????????????????????????????????????????????? | | ?????????????????????????????????????????????????? | | ?????????????????????????????????????????????????? | | ?????????????????????????????????????????????????? | +----------------------------------------------------+ Best States ------------- Heat Dissipation 58 Energy Generation 20 Energy Capacity 265 Matter Stores 300 Matter Capacity 300 Sight Range 18 Robot Scan Range 15 Terrain Scan Density 10 Power Amplification 20 Armor Coverage 225 Evasion (%) 53 Recoil Reduction 3 Offensive Hacking 20 Item Schematics ----------------- Hacking Suite | -8/Materials | Scanalyzed Robot Schematics ------------------ None Fabricated ------------ Hacking Suite | x1 | -7/Factory Alien Tech Used ----------------- None Achievements -------------- None Challenges ------------ None Game ------ Seed DiametricSkeletonDatajack Manual? 0 Play Time 01:00:37 Cumulative 39.9 hours Start 2023.03.27 @ 18:29:53 End 2023.03.27 @ 20:27:00 Sessions 3 Manual Loads 0 Difficulty Rogue Special Mode None Game No. 55 Rogue 55 Adventurer 0 Explorer 0 Win Type - Total 0 Types 0/0/0/0/0/0/0/0/0 Lore% 31 Gallery% 33 Achievement% 32 Wizard Run 0 Options --------- ASCII 0 Keyboard 0 Movement Arrows Keybinds 0 Fullscreen 1 Font 12/Smallcaps Map View 83x54 Tactical HUD 1 Map Filters NONE Filters NONE Steam 1 RUN: 6b190ed6-c020-490b-9267-fb1b142c410c